bitfinex-derivatives/quotes_SOLF0:USTF0_20241027
["timestamp","ask_amount","ask_price","bid_price","bid_amount"]
[1730050210630,6.9525454,177.11,177.09,2.8265]
[1730050210824,6.9525454,177.1,177.09,2.8265]
[1730050211225,6.9525454,177.1,177.08,2.8267]
[1730050211532,6.9525454,177.09,177.03,4.46]
[1730050211838,6.9525454,177.07,177.04,4.85929041]
[1730050212135,6.9525454,177.07,177.04,2.8274]
[1730050212325,6.9525454,177.07,177.03,4.46]
[1730050212527,2.8274,177.05,177.04,4.86096329]
[1730050213022,2.8274,177.05,177.02,2.8276]
[1730050213226,2.8274,177.05,177.03,4.86047923]
[1730050213426,4.46,177.11,177.01,6.9525454]
[1730050213623,9.7796454,177.06,177.03,2.8275]
[1730050214524,2.8273,177.05,177.03,2.8275]
[1730050215424,2.8277,177.03,177.0,2.8279]
[1730050215636,6.9525454,177.04,177.01,4.86040688]
[1730050215936,6.9525454,177.04,176.99,2.4783]
[1730050216128,6.9525454,177.04,177.0,4.86220374]
[1730050216327,6.9525454,177.04,176.99,2.4783]
[1730050216533,6.9525454,177.02,177.0,4.86172493]
[1730050216732,2.8279,177.01,176.98,2.8283]
[1730050216933,2.8279,177.01,176.99,4.86261799]
[1730050217125,2.8279,177.01,176.98,2.8283]
[1730050217324,2.8279,177.01,176.99,4.86196865]
[1730050217532,2.8279,177.01,176.98,2.8283]
[1730050217732,2.8279,177.01,176.99,4.86200087]
[1730050217933,2.8279,177.01,176.98,2.8283]
[1730050218134,2.8279,177.01,176.99,4.86190741]
[1730050218329,6.9525454,177.02,176.97,6.9525454]
[1730050218537,2.8278,177.02,176.99,2.8282]
[1730050218839,11.4325454,177.07,177.01,6.9525454]
[1730050219037,6.9525454,177.07,177.01,6.9525454]
[1730050219238,2.8274,177.05,177.01,9.7803454]
[1730050219438,9.7799454,177.05,177.01,2.8278]
[1730050220040,9.7799454,177.05,177.02,2.8277]
[1730050222039,1.0047,177.17,177.04,2.8274]
[1730050222040,2.8271,177.07,177.04,2.8274]
[1730050224840,6.9525454,177.09,177.04,6.9525454]
[1730050225050,2.8269,177.08,177.05,9.7796454]
[1730050225244,6.9525454,177.1,177.05,9.7796454]
[1730050225446,2.8267,177.09,177.05,9.7797454]
[1730050225647,6.9525454,177.1,177.05,9.7797454]
[1730050226450,2.8269,177.08,177.05,9.7797454]
[1730050228348,2.8269,177.08,177.06,2.8271]
[1730050228849,2.8264,177.11,177.08,2.8267]
[1730050229559,2.8266,177.1,177.07,2.8269]
[1730050230648,9.7791454,177.1,177.07,2.8269]
[1730050230947,2.8267,177.09,177.07,2.8269]
[1730050231145,6.9525454,177.1,177.07,2.8269]
[1730050231349,2.8262,177.12,177.09,2.8265]
[1730050231549,2.8262,177.12,177.09,9.7790454]
[1730050233453,4.48,177.15,177.09,6.9525454]
[1730050233763,2.8261,177.13,177.1,2.8263]
[1730050234144,2.8262,177.12,177.09,9.7791454]
[1730050234344,2.8262,177.12,177.09,2.8266]
[1730050234556,6.9525454,177.13,177.09,2.8266]
[1730050234856,2.8263,177.11,177.08,9.7792454]
[1730050235149,2.8263,177.11,177.08,6.9525454]
[1730050235654,4.48,177.15,177.08,6.9525454]
[1730050235954,6.9525454,177.17,177.11,6.9525454]
[1730050236150,2.8257,177.15,177.12,2.8261]
[1730050236449,6.9525454,177.17,177.11,6.9525454]
[1730050236658,6.9525454,177.14,177.09,6.9525454]
[1730050236950,6.9525454,177.11,177.07,4.46]
[1730050237155,2.8266,177.1,177.07,7.2868]
[1730050237353,2.8266,177.1,177.07,2.8268]
[1730050237655,2.8266,177.1,177.05,1.2253]
[1730050237656,2.8269,177.08,177.05,4.0524]
[1730050237856,2.8269,177.08,177.06,4.85546723]
[1730050238055,2.8269,177.08,177.05,2.8271]
[1730050238255,2.8269,177.08,177.06,4.85545405]
[1730050238554,2.827,177.07,177.04,5.2932]
[1730050238743,2.827,177.07,177.05,4.8562852]
[1730050238948,2.827,177.07,177.04,5.2932]
[1730050239255,2.827,177.07,177.05,4.85632635]
[1730050239447,2.827,177.07,177.04,5.2932]
[1730050239647,2.827,177.07,177.05,4.85639142]
[1730050239850,2.827,177.07,177.04,5.2932]
[1730050240051,2.827,177.07,177.05,4.85639142]
[1730050240249,2.827,177.07,177.04,12.2457454]
[1730050240445,2.827,177.07,177.05,4.85640181]
[1730050240651,2.827,177.07,177.04,12.2457454]
[1730050240852,2.827,177.07,177.05,4.85635237]
[1730050241051,2.827,177.07,177.04,12.2457454]
[1730050241353,2.827,177.07,177.05,4.85643857]
[1730050241558,2.827,177.07,177.04,12.2457454]
[1730050241758,2.827,177.07,177.05,4.85667715]
[1730050241959,2.827,177.07,177.04,12.2457454]
[1730050242255,2.827,177.07,177.05,4.85676251]
[1730050242464,2.827,177.07,177.04,12.2457454]
[1730050242757,2.827,177.07,177.05,4.85688726]
[1730050242963,2.827,177.07,177.04,12.2457454]
[1730050243163,2.827,177.07,177.05,4.85700615]
[1730050243364,2.827,177.07,177.04,12.2457454]
[1730050243664,2.827,177.07,177.05,4.85712404]
[1730050243861,2.827,177.07,177.04,12.2457454]
[1730050244051,2.827,177.07,177.05,4.85693559]
[1730050244257,2.827,177.07,177.04,12.2457454]
[1730050244458,2.827,177.07,177.05,4.85691869]
[1730050244657,2.827,177.07,177.04,12.2457454]
[1730050244854,2.827,177.07,177.05,4.85683066]
[1730050245057,2.827,177.07,177.04,12.2457454]
[1730050245262,2.827,177.07,177.05,11.80923051]
[1730050245461,2.827,177.07,177.05,6.9525454]
[1730050251763,6.9525454,177.11,177.05,6.9525454]
[1730050252463,2.8269,177.08,177.05,9.7797454]
[1730050252955,2.827,177.07,177.05,9.7797454]
[1730050255966,2.827,177.07,177.05,6.9525454]
[1730050257370,2.827,177.07,177.05,9.7798454]
[1730050262975,2.827,177.07,177.05,2.8273]
[1730050269878,2.827,177.07,177.04,11.0318454]
[1730050270079,2.827,177.07,177.05,4.86195219]
[1730050270279,2.827,177.07,177.04,11.0318454]
[1730050270471,2.827,177.07,177.05,4.86207395]
[1730050270871,2.8268,177.08,177.05,9.7797454]
[1730050271280,6.9525454,177.11,177.05,9.7797454]
[1730050271682,2.8269,177.08,177.05,9.7797454]
[1730050271882,6.9525454,177.11,177.05,9.7797454]
[1730050272397,2.8269,177.08,177.05,9.7797454]
[1730050275300,2.8269,177.08,177.02,4.46]
[1730050275301,6.9525454,177.08,177.02,2.8277]
[1730050275600,6.9525454,177.06,177.03,4.86368872]
[1730050275801,6.9525454,177.06,177.0,6.9525454]
[1730050276000,4.46,177.09,177.03,6.9525454]
[1730050276213,11.4125454,177.09,177.04,6.9525454]
[1730050276400,2.8272,177.06,177.04,6.9525454]
[1730050276795,11.4125454,177.09,177.04,6.9525454]
[1730050277104,4.46,177.09,177.05,2.8272]
[1730050277305,6.9525454,177.11,177.05,2.8272]
[1730050278403,2.8269,177.07,177.05,2.8272]
[1730050278818,6.9525454,177.11,177.05,2.8272]
[1730050279002,2.8269,177.08,177.06,6.9525454]
[1730050279204,5.6493,177.22,177.07,6.9525454]
[1730050279508,6.9525454,177.11,177.06,1.2019]
[1730050279699,6.9525454,177.11,177.06,8.1544454]
[1730050280099,6.9525454,177.11,177.07,4.86358044]
[1730050280301,11.4125454,177.13,177.07,9.7794454]
[1730050280608,2.8266,177.1,177.07,9.7794454]
[1730050280810,11.4125454,177.13,177.07,9.7794454]
[1730050281402,2.8266,177.1,177.07,9.7794454]
[1730050282412,2.8266,177.09,177.07,6.9525454]
[1730050283509,2.8266,177.09,177.07,9.7794454]
[1730050284105,2.8266,177.09,177.07,6.9525454]
[1730050284722,4.46,177.13,177.07,6.9525454]
[1730050284910,2.8262,177.12,177.09,9.7790454]
[1730050286008,1.485,177.19,177.09,6.9525454]
[1730050286311,6.9525454,177.19,177.14,6.9525454]
[1730050286622,6.9525454,177.2,177.14,6.9525454]
[1730050287207,60.5668,177.3,177.19,6.9525454]
[1730050287413,6.9525454,177.25,177.2,6.9525454]
[1730050287613,11.91328116,177.29,177.2,6.9525454]
[1730050287805,6.9525454,177.26,177.21,6.9525454]
[1730050288415,6.9525454,177.27,177.21,6.9525454]
[1730050289006,6.9525454,177.25,177.21,6.9525454]
[1730050289209,6.9525454,177.25,177.2,6.9525454]
[1730050289716,2.8245,177.23,177.2,6.9525454]
[1730050292417,2.8246,177.22,177.2,6.9525454]
[1730050292720,2.8246,177.22,177.19,7.2849]
[1730050293615,2.8244,177.23,177.2,2.8249]
[1730050295315,6.9525454,177.24,177.2,6.9525454]
[1730050295915,2.8245,177.23,177.2,9.7773454]
[1730050297323,6.9525454,177.24,177.2,6.9525454]
[1730050298222,6.9525454,177.22,177.17,4.46]
[1730050298418,6.9525454,177.22,177.17,11.4125454]
[1730050298617,2.825,177.2,177.17,11.4125454]
[1730050299310,2.825,177.2,177.17,9.7778454]
[1730050299727,6.9525454,177.24,177.18,6.9525454]
[1730050300025,6.9525454,177.24,177.19,2.825]
[1730050301924,2.8247,177.21,177.19,2.825]
[1730050303332,2.8242,177.25,177.22,2.8245]
[1730050303522,2.8242,177.25,177.23,6.9525454]
[1730050306026,2.8242,177.25,177.23,9.7769454]
[1730050306818,2.8238,177.27,177.24,2.8241]
[1730050307117,139.20959254,177.35,177.26,6.9525454]
[1730050307320,11.4125454,177.34,177.28,6.9525454]
[1730050308326,2.8234,177.29,177.28,6.9525454]
[1730050309223,130.74199254,177.35,177.28,6.9525454]
[1730050309531,6.9525454,177.34,177.29,6.9525454]
[1730050310329,137.69453794,177.35,177.29,6.9525454]
[1730050310725,130.74199254,177.35,177.3,6.9525454]
[1730050311029,130.74199254,177.35,177.28,4.46]
[1730050311030,2.8227,177.34,177.32,6.9525454]
[1730050311724,6.9525454,177.36,177.32,6.9525454]
[1730050312031,2.8228,177.33,177.31,6.9525454]
[1730050314630,6.9525454,177.36,177.31,6.9525454]
[1730050314825,2.823,177.32,177.31,6.9525454]
[1730050315841,2.8234,177.3,177.28,11.4125454]
[1730050316430,2.8234,177.3,177.28,14.2361454]
[1730050317634,6.9525454,177.36,177.28,11.4125454]
[1730050317826,6.9525454,177.36,177.31,6.9525454]
[1730050318426,2.8226,177.35,177.31,6.9525454]
[1730050318622,6.9525454,177.36,177.31,6.9525454]
[1730050318826,4.46,177.38,177.31,6.9525454]
[1730050319030,2.8227,177.34,177.31,9.7756454]
[1730050319336,2.8227,177.34,177.33,6.9525454]
[1730050320335,2.8223,177.37,177.33,6.9525454]
[1730050320535,2.8223,177.37,177.36,6.9525454]
[1730050321031,2.8402056,177.42,177.36,6.9525454]
[1730050321333,4.46,177.43,177.38,6.9525454]
[1730050321334,6.9525454,177.43,177.38,6.9525454]
[1730050321739,2.75353995,177.42,177.38,6.9525454]
[1730050322037,2.8218,177.39,177.38,6.9525454]
[1730050324431,2.75353995,177.42,177.38,6.9525454]
[1730050324636,6.9525454,177.43,177.38,6.9525454]
[1730050325237,2.8218,177.39,177.38,6.9525454]
[1730050330049,2.8223,177.36,177.35,8.1159454]
[1730050330544,2.8223,177.36,177.34,9.3754454]
[1730050330742,2.8225,177.35,177.34,8.2166454]
[1730050332545,2.8219,177.39,177.36,2.8222]
[1730050332748,9.73795323,177.4,177.34,8.2166454]
[1730050333047,6.9525454,177.4,177.34,8.2166454]
[1730050333546,2.8224,177.36,177.35,6.9525454]
[1730050334549,6.9525454,177.41,177.35,6.9525454]
[1730050334738,7.26701838,177.44,177.35,6.9525454]
[1730050334739,2.8221,177.38,177.37,6.9525454]
[1730050334944,6.9525454,177.42,177.37,6.9525454]
[1730050335246,2.8215,177.42,177.39,2.8217]
[1730050335441,14.19956378,177.44,177.38,6.9525454]
[1730050336352,2.8218,177.4,177.38,6.9525454]
[1730050336951,2.8218,177.39,177.38,6.9525454]
[1730050337245,6.9525454,177.43,177.38,6.9525454]
[1730050337452,7.24701838,177.44,177.38,6.9525454]
[1730050337647,7.24701838,177.44,177.4,2.8217]
[1730050337848,6.9525454,177.43,177.38,6.9525454]
[1730050338048,2.8218,177.4,177.38,6.9525454]
[1730050338656,7.24701838,177.44,177.38,6.9525454]
[1730050338854,5.64,177.51,177.41,9.7739454]
[1730050339048,6.9525454,177.48,177.42,6.9525454]
[1730050339245,2.8215,177.42,177.38,4.44]
[1730050339446,2.8215,177.42,177.4,6.9525454]
[1730050341456,6.9525454,177.46,177.41,6.9525454]
[1730050341754,7.26037362,177.48,177.41,6.9525454]
[1730050341755,6.9525454,177.47,177.41,6.9525454]
[1730050342353,7.26037362,177.48,177.41,6.9525454]
[1730050342550,11.3925454,177.48,177.41,6.9525454]
[1730050343149,4.44,177.48,177.41,6.9525454]
[1730050343351,2.8213,177.43,177.4,2.8216]
[1730050343557,7.32930777,177.49,177.43,6.9525454]
[1730050343856,7.32930777,177.49,177.44,6.9525454]
[1730050343857,4.44,177.49,177.44,6.9525454]
[1730050344253,2.821,177.45,177.41,2.8215]
[1730050344449,6.9525454,177.48,177.43,6.9525454]
[1730050344850,2.821,177.44,177.43,6.9525454]
[1730050345254,4.44,177.49,177.43,6.9525454]
[1730050345558,6.9525454,177.48,177.43,6.9525454]
[1730050346257,140.91188933,177.54,177.43,6.9525454]
[1730050346457,6.9525454,177.49,177.43,6.9525454]
[1730050346657,6.9525454,177.49,177.45,6.9525454]
[1730050347256,4.44,177.53,177.46,6.9525454]
[1730050347467,11.3925454,177.53,177.48,6.9525454]
[1730050348262,2.8199,177.52,177.48,6.9525454]
[1730050348560,140.91188933,177.54,177.48,6.9525454]
[1730050348759,152.30443473,177.54,177.48,6.9525454]
[1730050348952,140.91188933,177.54,177.48,6.9525454]
[1730050349168,0.4764,177.6,177.51,6.9525454]
[1730050349354,11.3925454,177.57,177.51,6.9525454]
[1730050349557,2.8198,177.52,177.51,6.9525454]
[1730050349865,0.4764,177.6,177.51,6.9525454]
[1730050350078,3.75483015,177.63,177.55,6.9525454]
[1730050350379,4.44,177.64,177.57,6.9525454]
[1730050350659,6.9525454,177.63,177.57,6.9525454]
[1730050350862,4.44,177.63,177.57,6.9525454]
[1730050351054,2.8186,177.6,177.57,6.9525454]
[1730050351363,2.84372641,177.64,177.59,6.9525454]
[1730050351562,4.44,177.65,177.59,6.9525454]
[1730050351763,2.87757023,177.65,177.61,6.9525454]
[1730050351949,11.3925454,177.66,177.61,6.9525454]
[1730050352157,9.81629607,177.65,177.55,4.44]
[1730050352357,6.9525454,177.61,177.52,3.5162]
[1730050352570,6.9525454,177.59,177.54,6.9525454]
[1730050353168,11.3925454,177.61,177.55,6.9525454]
[1730050353358,4.44,177.61,177.57,6.9525454]
[1730050353768,2.8187,177.6,177.57,6.9525454]
[1730050354074,4.44,177.61,177.57,6.9525454]
[1730050354259,2.8193,177.56,177.52,3.5162]
[1730050354459,6.9525454,177.59,177.54,6.9525454]
[1730050354659,6.9525454,177.58,177.52,9.3007454]
[1730050354865,2.8194,177.55,177.52,9.3007454]
[1730050355260,4.44,177.61,177.52,9.3007454]
[1730050355468,6.9525454,177.58,177.52,9.3007454]
[1730050355770,6.9525454,177.59,177.54,6.9525454]
[1730050356062,11.3925454,177.61,177.56,6.9525454]
[1730050356262,6.9525454,177.59,177.54,6.9525454]
[1730050356479,4.44,177.61,177.52,5.1679]
[1730050356663,2.8193,177.56,177.52,5.1679]
[1730050357572,4.44,177.61,177.52,2.3482]
[1730050359368,2.8196,177.53,177.52,2.3482]
[1730050359567,4.44,177.61,177.52,2.3482]
[1730050359972,2.8195,177.54,177.52,2.3482]
[1730050360170,4.44,177.61,177.52,2.3482]
[1730050360369,2.8188,177.59,177.52,2.3482]
[1730050360569,4.44,177.61,177.52,2.3482]
[1730050360774,4.44,177.61,177.51,10.83478191]
[1730050360975,2.8197,177.53,177.51,10.83478191]
[1730050361272,4.44,177.57,177.51,10.83478191]
[1730050362174,2.8194,177.55,177.51,10.83478191]
[1730050362476,4.44,177.57,177.51,10.83478191]
[1730050362868,2.8195,177.54,177.51,10.83478191]
[1730050364566,2.8195,177.54,177.51,13.65468191]
[1730050364766,2.8192,177.56,177.51,10.83478191]
[1730050364963,4.44,177.6,177.53,10.83478191]
[1730050365171,11.83638191,177.63,177.53,10.83478191]
[1730050365172,1.0016,177.63,177.54,2.8194]
[1730050365478,2.8189,177.58,177.54,2.8194]
[1730050367370,2.8186,177.6,177.56,2.819]
[1730050367575,4.44,177.62,177.55,10.83478191]
[1730050367981,4.44,177.64,177.58,10.83478191]
[1730050368369,2.8182,177.62,177.59,2.8186]
[1730050368773,2.8182,177.62,177.58,10.83478191]
[1730050369186,2.8182,177.62,177.58,13.65358191]
[1730050371276,1.002,177.68,177.6,10.83478191]
[1730050371587,4.44,177.67,177.6,10.83478191]
[1730050372083,2.8183,177.62,177.6,10.83478191]
[1730050372883,4.44,177.66,177.6,10.83478191]
[1730050373977,2.818,177.64,177.61,2.8183]
[1730050374183,11.31148191,177.71,177.6,10.83478191]
[1730050374490,2.8183,177.62,177.6,10.83478191]
[1730050374693,10.074,177.7,177.6,10.83478191]
[1730050375096,2.8182,177.62,177.6,10.83478191]
[1730050375301,10.074,177.7,177.6,10.83478191]
[1730050376192,4.44,177.7,177.6,13.65318191]
[1730050376390,4.44,177.7,177.62,10.83478191]
[1730050376594,11.36586344,177.7,177.65,6.92586344]
[1730050376793,6.92586344,177.68,177.65,6.92586344]
[1730050377094,2.8179,177.64,177.63,6.92586344]
[1730050377999,11.36586344,177.67,177.62,6.92586344]
[1730050378491,2.8182,177.63,177.62,6.92586344]
[1730050379396,11.36586344,177.67,177.59,2.8185]
[1730050379696,11.36586344,177.67,177.62,6.92586344]
[1730050379892,11.36586344,177.67,177.56,3.5957]
[1730050380097,2.8184,177.61,177.6,6.92586344]
[1730050380992,4.44,177.67,177.6,6.92586344]
[1730050381199,4.44,177.66,177.64,6.92586344]
[1730050381593,2.818,177.64,177.63,6.92586344]
[1730050381989,4.44,177.66,177.63,6.92586344]
[1730050382207,4.44,177.66,177.64,6.92586344]
[1730050382701,4.44,177.66,177.63,6.92586344]
[1730050382904,2.8179,177.64,177.63,6.92586344]
[1730050383293,2.8183,177.62,177.6,6.92586344]
[1730050383693,6.92586344,177.65,177.6,6.92586344]
[1730050384607,2.8183,177.62,177.6,6.92586344]
[1730050385597,2.8183,177.62,177.61,6.92586344]
[1730050388194,6.1104,177.71,177.56,2.4042]
[1730050388195,6.92586344,177.63,177.56,2.4042]
[1730050388502,11.36586344,177.62,177.56,8.15716344]
[1730050388703,2.819,177.57,177.56,8.15716344]
[1730050389331,11.36586344,177.62,177.56,8.15716344]
[1730050389596,2.8189,177.58,177.56,8.15716344]
[1730050390405,2.8189,177.58,177.57,6.92586344]
[1730050391710,6.92586344,177.6,177.54,6.92586344]
[1730050392113,6.92586344,177.6,177.55,6.92586344]
[1730050392313,6.92586344,177.61,177.55,6.92586344]
[1730050392906,2.8189,177.58,177.57,6.92586344]
[1730050393212,4.44,177.62,177.57,6.92586344]
[1730050394009,4.44,177.62,177.58,6.92586344]
[1730050394206,2.8183,177.62,177.6,6.92586344]
[1730050394408,4.44,177.65,177.6,6.92586344]
[1730050394607,4.44,177.65,177.61,6.92586344]
[1730050395515,2.8182,177.62,177.61,6.92586344]
[1730050396615,2.8182,177.62,177.6,6.92586344]
[1730050397009,6.92586344,177.63,177.57,2.8189]
[1730050397315,6.92586344,177.63,177.57,9.74476344]
[1730050397525,2.8184,177.61,177.57,9.74476344]
[1730050397722,6.92586344,177.67,177.6,6.92586344]
[1730050397915,11.36586344,177.67,177.62,6.92586344]
[1730050398116,6.92586344,177.65,177.59,6.92586344]
[1730050398725,2.8181,177.63,177.59,9.74446344]
[1730050398923,6.92586344,177.65,177.59,6.92586344]
[1730050399127,2.818,177.64,177.59,6.92586344]
[1730050399427,6.92586344,177.7,177.63,6.92586344]
[1730050399640,6.92586344,177.7,177.64,6.92586344]
[1730050400013,2.8177,177.66,177.64,6.92586344]
[1730050400318,6.92586344,177.7,177.64,6.92586344]
[1730050400524,2.8177,177.66,177.63,6.92586344]
[1730050400823,6.92586344,177.68,177.63,6.92586344]
[1730050401220,2.8178,177.65,177.63,6.92586344]
[1730050402220,6.92586344,177.68,177.62,6.92586344]
[1730050402418,6.92586344,177.66,177.62,6.92586344]
[1730050402818,2.8177,177.65,177.62,6.92586344]
[1730050403027,6.92586344,177.63,177.58,6.92586344]
[1730050403423,2.8187,177.59,177.58,6.92586344]
[1730050403828,2.8187,177.59,177.57,6.92586344]
[1730050404826,2.8187,177.59,177.58,6.92586344]
[1730050406034,2.8185,177.61,177.58,6.92586344]
[1730050406239,6.92586344,177.63,177.58,6.92586344]
[1730050407630,2.8186,177.6,177.58,6.92586344]
[1730050408129,6.92586344,177.63,177.58,6.92586344]
[1730050408331,2.8187,177.59,177.58,6.92586344]
[1730050410134,11.36586344,177.62,177.55,1.222]
[1730050410337,11.36586344,177.62,177.49,5.6583]
[1730050410338,6.92586344,177.59,177.49,5.6583]
[1730050410538,6.92586344,177.59,177.52,6.92586344]
[1730050410738,2.8196,177.54,177.52,6.92586344]
[1730050411830,2.8196,177.53,177.52,6.92586344]
[1730050412237,2.8196,177.53,177.49,1.2183]
[1730050412438,6.92586344,177.5,177.34,8.38799143]
[1730050412630,6.92586344,177.45,177.34,3.5552]
[1730050412836,6.92586344,177.43,177.38,6.92586344]
[1730050413240,2.8216,177.41,177.38,6.92586344]
[1730050413438,1.0031,177.52,177.4,6.92586344]
[1730050413634,6.92586344,177.5,177.44,6.92586344]
[1730050414036,6.92586344,177.48,177.42,6.92586344]
[1730050414233,4.44,177.47,177.42,6.92586344]
[1730050414431,4.44,177.47,177.39,10.83721825]
[1730050415254,2.8212,177.43,177.39,10.83721825]
[1730050415440,10.83721825,177.5,177.39,10.83721825]
[1730050415651,4.44,177.49,177.41,10.83721825]
[1730050416143,2.8209,177.46,177.41,13.65871825]
[1730050416351,4.44,177.48,177.41,10.83721825]
[1730050416535,4.44,177.47,177.42,1.2444]
[1730050416739,4.44,177.46,177.42,3.7232]
[1730050417546,2.8207,177.47,177.42,6.5445]
[1730050417737,10.83721825,177.52,177.42,3.7232]
[1730050417944,2.8205,177.48,177.43,2.8211]
[1730050418139,4.44,177.47,177.43,2.8211]
[1730050418553,4.44,177.47,177.24,18.75853125]
[1730050418554,2.8214,177.42,177.37,2.8221]
[1730050418846,2.8214,177.42,177.22,10.0691]
[1730050418847,10.83721825,177.45,177.35,2.3668]
[1730050419054,4.42,177.44,177.35,2.3668]
[1730050419240,2.8216,177.41,177.35,5.1893]
[1730050419748,4.42,177.43,177.35,13.20401825]
[1730050419942,2.8215,177.42,177.37,2.822]
[1730050420540,2.8213,177.43,177.38,2.8219]
[1730050420854,4.42,177.45,177.35,13.20401825]
[1730050421847,2.8214,177.42,177.37,2.822]
[1730050422450,4.42,177.45,177.37,2.822]
[1730050423245,4.42,177.45,177.36,2.8223]
[1730050423440,4.42,177.45,177.35,13.20401825]
[1730050423441,15.25721825,177.45,177.35,2.3668]
[1730050424957,2.8214,177.42,177.35,5.1892]
[1730050425251,15.25721825,177.45,177.35,5.1892]
[1730050425454,2.8218,177.4,177.35,5.1892]
[1730050426152,2.822,177.39,177.35,2.3668]
[1730050427556,2.822,177.38,177.35,2.3668]
[1730050427850,4.44,177.41,177.35,2.3668]
[1730050428554,10.83721825,177.45,177.35,2.3668]
[1730050428750,2.8222,177.37,177.35,2.3668]
[1730050429243,4.44,177.4,177.35,2.3668]
[1730050429650,10.83721825,177.45,177.35,2.3668]
[1730050429946,4.44,177.44,177.35,2.3668]
[1730050430356,2.8215,177.42,177.35,5.1892]
[1730050430557,4.44,177.44,177.35,5.1892]
[1730050430747,4.44,177.44,177.35,2.3668]
[1730050430956,2.8222,177.37,177.35,2.3668]
[1730050431153,4.44,177.4,177.35,2.3668]
[1730050431747,2.822,177.38,177.35,2.3668]
[1730050432059,4.44,177.4,177.35,2.3668]
[1730050432556,4.44,177.4,177.33,10.83721825]
[1730050432961,2.8223,177.37,177.33,13.66001825]
[1730050433162,4.44,177.4,177.33,13.66001825]
[1730050433360,2.8224,177.36,177.32,2.8228]
[1730050434246,2.8219,177.39,177.36,2.8222]
[1730050434476,4.44,177.49,177.37,10.83721825]
[1730050434670,10.83721825,177.51,177.4,10.83721825]
[1730050434875,4.44,177.5,177.4,10.83721825]
[1730050435362,10.83721825,177.49,177.4,10.83721825]
[1730050435562,10.83721825,177.49,177.39,12.07161825]
[1730050435956,54.78,177.55,177.39,1.2344]
[1730050435957,10.83721825,177.47,177.39,1.2344]
[1730050436258,10.83721825,177.47,177.38,2.4658]
[1730050436259,4.44,177.46,177.38,2.4658]
[1730050436452,10.83721825,177.45,177.38,2.4658]
[1730050436656,10.83721825,177.42,177.32,16.51161825]
[1730050436962,4.44,177.41,177.34,10.83721825]
[1730050437159,4.44,177.41,177.35,1.1948]
[1730050437564,7.2616,177.41,177.36,2.8222]
[1730050437958,7.2615,177.42,177.37,2.822]
[1730050438157,4.44,177.42,177.35,1.1948]
[1730050438359,4.44,177.43,177.37,10.83721825]
[1730050438572,4.44,177.45,177.41,2.8215]
[1730050438770,4.44,177.45,177.37,10.83721825]
[1730050439267,4.44,177.46,177.39,10.83721825]
[1730050439767,7.2607,177.47,177.42,2.8212]
[1730050440263,2.8207,177.46,177.42,2.8212]
[1730050440971,15.27721825,177.48,177.4,1.2182]
[1730050441361,2.8212,177.43,177.4,1.2182]
[1730050441653,15.27721825,177.48,177.4,1.2182]
[1730050441866,4.44,177.48,177.4,1.2182]
[1730050442069,15.27721825,177.48,177.4,1.2182]
[1730050442260,2.8209,177.45,177.41,2.8215]
[1730050442855,2.8208,177.46,177.42,2.8213]
[1730050443263,4.44,177.48,177.4,1.2182]
[1730050443463,7.2605,177.48,177.44,2.8209]
[1730050443660,4.44,177.48,177.4,2.462]
[1730050443966,54.78,177.55,177.42,10.83721825]
[1730050444173,15.27721825,177.54,177.43,1.1797]
[1730050444370,15.27721825,177.54,177.42,10.83721825]
[1730050444371,10.83721825,177.51,177.42,10.83721825]
[1730050444563,2.8208,177.46,177.42,2.8213]
[1730050444766,4.44,177.5,177.4,1.2182]
[1730050444965,10.83721825,177.48,177.4,1.2182]
[1730050445377,10.83721825,177.48,177.37,4.44]
[1730050445669,2.8211,177.44,177.37,4.44]
[1730050447263,2.8211,177.44,177.37,15.27721825]
[1730050447474,7.2609,177.45,177.37,15.27721825]
[1730050448081,2.821,177.44,177.4,2.8216]
[1730050448456,4.44,177.45,177.37,15.27721825]
[1730050448658,4.44,177.45,177.36,1.2657]
[1730050448659,15.27721825,177.45,177.36,1.2657]
[1730050449362,2.8216,177.41,177.37,2.822]